bitfinex-derivatives/quotes_ETHF0:USTF0_20260303
["timestamp","ask_amount","ask_price","bid_price","bid_amount"]
[1772569944981,2.85645691,1982.4,1981.3,2.966571]
[1772569945182,2.85645691,1982.2,1981.3,2.966571]
[1772569945382,2.85645691,1982.2,1981.3,0.00527587]
[1772569945871,2.85645691,1982.2,1981.5,2.96129513]
[1772569946477,2.85645691,1982.2,1981.4,3.21365513]
[1772569947072,2.85645691,1982.2,1981.3,0.00527587]
[1772569947476,2.85645691,1982.2,1981.3,2.966571]
[1772569947881,2.85645691,1982.2,1981.3,3.218941]
[1772569954991,2.85645691,1982.2,1980.9,2.96129513]
[1772569955982,2.85645691,1982.0,1980.9,2.96709546]
[1772569957985,2.85645691,1982.0,1981.0,3.21370513]
[1772569958386,2.85645691,1982.5,1981.4,2.96129513]
[1772569958586,2.85645691,1982.5,1981.6,2.96129513]
[1772569959581,2.85645691,1982.5,1981.7,3.21361513]
[1772569965192,6.38119927,1982.4,1981.7,3.21361513]
[1772569966297,2.85645691,1982.3,1981.7,3.21361513]
[1772569971003,2.85645691,1982.3,1981.7,0.25232]
[1772569971200,2.97945976,1982.1,1981.2,3.01152298]
[1772569973005,2.97945976,1982.1,1981.6,2.75915298]
[1772569975504,11.915,1982.4,1981.8,2.75915298]
[1772569975505,2.97945976,1982.2,1981.8,2.75915298]
[1772569976606,4.18818064,1982.7,1982.3,0.25224]
[1772569976806,2.98552957,1983.1,1982.6,1.5180662]
[1772569977008,7.00037715,1983.0,1982.7,0.25219]
[1772569977816,3.50460163,1983.0,1982.7,2.25488601]
[1772569978821,6.48406139,1983.0,1982.7,0.25219]
[1772569979010,3.50460163,1983.0,1982.7,0.25219]
[1772569979216,6.48406139,1983.0,1982.7,0.25219]
[1772569980120,3.50460163,1983.0,1982.7,2.25763163]
[1772569980312,0.00606981,1983.1,1982.7,2.25763163]
[1772569980518,6.4901312,1983.1,1982.7,2.25763163]
[1772569981018,2.97945976,1983.0,1982.7,0.25219]
[1772569981415,2.97945976,1983.0,1982.3,0.0052082]
[1772569981623,2.97945976,1982.8,1982.3,0.0052082]
[1772569982017,2.97945976,1982.8,1982.0,1.97654858]
[1772569982217,2.97945976,1982.6,1982.0,1.97654858]
[1772569982619,2.97945976,1982.4,1981.7,0.25231]
[1772569982820,2.97945976,1982.4,1981.8,1.98324224]
[1772569983021,2.97945976,1982.4,1981.8,1.9888576]
[1772569983325,2.97945976,1982.3,1981.8,1.9888576]
[1772569983820,3.50460163,1982.4,1981.8,1.9888576]
[1772569984425,3.23731084,1982.8,1982.3,0.26775469]
[1772569984624,3.23731084,1982.8,1982.4,0.01136271]
[1772569985323,1.52413968,1982.8,1982.5,0.26358271]
[1772569985822,3.22844698,1982.9,1982.5,0.26358271]
[1772569986018,4.75258666,1982.9,1982.5,0.26358271]
[1772569986626,0.00606981,1983.1,1982.7,0.37748478]
[1772569986826,1.52413968,1983.0,1982.7,0.25219]
[1772569987016,1.52413968,1983.0,1982.7,0.37748478]
[1772569987417,4.76042307,1983.0,1982.7,0.25219]
[1772569988626,3.23344549,1982.9,1982.7,0.25219]
[1772569989326,3.23344549,1982.9,1982.3,0.12634545]
[1772569989518,0.00606981,1983.1,1981.9,6.20648]
[1772569989519,3.23330761,1982.7,1982.0,0.12199584]
[1772569989719,3.23330761,1982.9,1982.3,0.11737014]
[1772569990429,3.23884285,1983.1,1982.3,0.11737014]
[1772569990632,3.23884285,1983.1,1982.5,0.38365709]
[1772569992133,3.23884285,1983.1,1982.5,0.25221]
[1772569992732,3.23884285,1983.1,1982.5,0.48333069]
[1772569993332,3.23119472,1983.6,1982.8,0.22534052]
[1772569993537,3.23119472,1983.6,1983.3,0.25212]
[1772569993736,3.55998465,1984.6,1983.3,0.25212]
[1772569994034,3.23422963,1984.4,1983.3,0.25212]
[1772569994233,3.23422963,1984.2,1983.3,0.25212]
[1772569994434,3.23848861,1984.2,1983.3,0.25580358]
[1772569994833,3.23848861,1984.2,1982.9,0.25217]
[1772569995034,3.23848861,1984.2,1982.9,0.46821968]
[1772569995232,3.23848861,1984.2,1983.1,0.46818968]
[1772569995428,3.23848861,1984.2,1983.1,0.25214]
[1772569995840,3.23848861,1984.2,1983.1,0.25722626]
[1772569996936,3.23848861,1984.2,1983.1,0.00508626]
[1772569997336,3.21846322,1984.0,1982.7,0.25219]
[1772569997737,0.25202,1984.1,1982.7,0.25219]
[1772569997738,3.21832952,1983.8,1982.7,0.25219]
[1772569998133,3.21832952,1983.7,1982.7,0.48458999]
[1772569998333,3.21832952,1983.7,1982.7,0.48895775]
[1772569998534,3.21832952,1983.7,1983.0,0.22889522]
[1772569999239,3.21832952,1983.7,1983.3,0.25212]
[1772570002036,3.21832952,1983.7,1982.9,0.20856799]
[1772570002238,3.21832952,1983.7,1982.8,0.25217]
[1772570003733,3.21832952,1983.7,1982.8,0.44130538]
[1772570003934,3.21832952,1983.7,1982.8,0.25217]
[1772570004240,3.21832952,1983.7,1982.8,0.44130538]
[1772570004441,3.21832952,1983.7,1982.8,0.25217]
[1772570006543,3.25234371,1983.5,1982.7,0.00436776]
[1772570006940,3.25234371,1983.5,1982.4,0.25223]
[1772570007142,3.25234371,1983.3,1982.4,0.25223]
[1772570008045,3.25234371,1983.3,1982.4,0.25647102]
[1772570012148,3.25234371,1983.3,1982.0,0.495573]
[1772570012745,3.25234371,1983.1,1982.0,0.495573]
[1772570012950,3.25234371,1983.1,1982.4,0.25223]
[1772570013150,3.25234371,1983.1,1982.4,0.25730877]
[1772570013446,3.25234371,1983.1,1982.6,0.25221]
[1772570013652,3.25234371,1983.1,1982.7,0.77793683]
[1772570013841,3.25234371,1983.1,1982.6,1.03014683]
[1772570015648,3.25234371,1983.3,1982.9,0.77723814]
[1772570016153,3.25234371,1983.3,1982.8,0.25218]
[1772570018148,3.25234371,1983.3,1982.4,0.25730877]
[1772570018349,3.25234371,1983.3,1982.4,1.05673537]
[1772570018650,3.25234371,1983.3,1982.6,0.25221]
[1772570020450,3.25234371,1983.3,1982.6,1.05006571]
[1772570021246,3.25234371,1983.3,1982.8,0.25218]
[1772570021452,3.03829334,1983.3,1983.0,0.25216]
[1772570022449,3.03829334,1983.3,1982.7,1.00299873]
[1772570022650,3.03829334,1983.3,1982.6,1.26324501]
[1772570023251,3.25234371,1983.9,1983.2,0.25212]
[1772570023548,3.25234371,1983.9,1983.2,1.26278903]
[1772570023753,3.25234371,1983.9,1983.2,0.25212]
[1772570027557,3.25234371,1983.9,1983.4,0.25211]
[1772570027748,3.25234371,1983.9,1983.4,1.22501006]
[1772570027946,3.20899588,1983.9,1983.6,0.25208]
[1772570029258,3.20899588,1983.9,1982.8,1.26031989]
[1772570029653,3.20899588,1983.9,1983.2,1.25929667]
[1772570029854,3.20899588,1983.9,1983.4,1.25929667]
[1772570030258,3.20899588,1983.9,1983.5,0.25209]
[1772570035455,3.17632963,1984.1,1983.5,1.50195284]
[1772570036361,3.17632963,1984.1,1983.1,1.24553926]
[1772570036556,3.17632963,1984.1,1983.1,0.25214]
[1772570037458,3.17632963,1983.9,1982.7,0.25219]
[1772570037764,3.17632963,1983.7,1982.4,0.00507877]
[1772570037963,3.17632963,1983.5,1982.4,0.00507877]
[1772570040069,3.17632963,1983.5,1982.5,0.25222]
[1772570040662,3.17632963,1983.5,1982.5,1.71102508]
[1772570041062,3.17632963,1983.5,1982.5,0.25222]
[1772570042462,3.17632963,1983.5,1982.4,0.00507877]
[1772570042865,3.17632963,1983.5,1982.5,1.92082882]
[1772570043762,3.17632963,1983.5,1982.5,0.25222]
[1772570044562,3.17632963,1983.5,1982.5,1.94435257]
[1772570045969,3.17632963,1983.5,1982.9,1.93643543]
[1772570048472,3.17632963,1983.5,1982.5,8.44722]
[1772570048766,3.17632963,1983.5,1982.5,0.25222]
[1772570049963,3.17632963,1983.4,1982.5,0.25222]
[1772570052765,3.17632963,1983.4,1982.5,1.90772892]
[1772570054170,3.17632963,1983.4,1982.5,0.25222]
[1772570054474,3.17632963,1983.4,1982.0,10.09492198]
[1772570054666,3.17632963,1983.2,1982.0,0.25227]
[1772570055166,3.17632963,1983.0,1982.0,0.25227]
[1772570055563,3.17632963,1983.0,1982.0,0.25695809]
[1772570055771,3.17632963,1982.8,1982.0,0.00468809]
[1772570055975,3.17632963,1982.8,1981.6,1.65243383]
[1772570055976,3.17632963,1982.8,1981.7,1.90599052]
[1772570056669,3.17632963,1982.8,1981.7,1.89717481]
[1772570057072,3.18260634,1982.8,1981.7,1.90292864]
[1772570058770,3.18260634,1982.8,1982.0,0.25227]
[1772570058969,3.18260634,1982.8,1982.1,1.6682474]
[1772570059573,3.18260634,1982.8,1982.0,0.25227]
[1772570059775,3.18260634,1982.8,1982.0,1.91639811]
[1772570062980,2.94864107,1983.0,1982.5,1.71128743]
[1772570063674,2.94864107,1983.6,1982.9,0.25216]
[1772570063870,2.95456489,1983.6,1982.9,1.95998829]
[1772570064081,2.95456489,1983.6,1982.9,0.25216]
[1772570065778,2.95456489,1983.6,1982.9,1.94654826]
[1772570066578,2.95456489,1983.6,1982.9,0.25216]
[1772570067179,2.95456489,1983.6,1982.9,1.96249736]
[1772570067680,2.95456489,1983.6,1982.9,0.25216]
[1772570068282,2.95456489,1983.6,1982.9,1.95862833]
[1772570068480,2.95456489,1983.6,1983.2,1.96248518]
[1772570068681,2.95456489,1983.6,1983.2,1.9673456]
[1772570070585,2.95456489,1983.6,1983.2,0.25698042]
[1772570071986,2.95456489,1983.6,1982.8,0.25218]
[1772570072588,2.95456489,1983.6,1982.8,1.93950013]
[1772570072986,2.95456489,1983.6,1982.8,1.94313107]
[1772570074887,2.95456489,1983.6,1982.8,0.25581094]
[1772570075988,2.95456489,1983.6,1982.8,1.93059335]
[1772570076790,2.95456489,1983.6,1983.2,1.69167085]
[1772570076990,2.95456489,1983.6,1983.1,1.94380085]
[1772570078390,2.95456489,1983.6,1983.1,0.25213]
[1772570079095,2.95456489,1983.6,1982.8,1.64917996]
[1772570080095,2.95456489,1983.6,1983.1,0.25213]
[1772570081494,2.95456489,1983.6,1982.8,0.00363094]
[1772570081795,2.95456489,1983.6,1982.3,2.11886181]
[1772570082899,2.95456489,1983.6,1982.3,2.12522989]
[1772570083097,2.95456489,1983.6,1982.6,2.11839102]
[1772570083798,2.95456489,1983.6,1982.6,0.2522]
[1772570085190,2.95456489,1983.6,1982.6,2.12430215]
[1772570086805,2.95456489,1983.6,1982.9,0.25216]
[1772570092105,6.16678767,1983.5,1982.9,0.25216]
[1772570092306,2.95456489,1983.6,1982.9,0.25216]
[1772570092307,2.97064784,1983.4,1982.9,0.25216]
[1772570095608,2.97064784,1983.4,1982.3,0.00636808]
[1772570096008,2.97064784,1983.2,1982.3,0.00636808]
[1772570096209,2.97064784,1983.0,1982.3,0.00636808]
[1772570098011,2.97064784,1983.0,1982.1,0.25227]
[1772570098916,2.97064784,1983.0,1982.1,0.2585849]
[1772570100319,2.97064784,1983.0,1982.1,2.48328684]
[1772570100922,2.97064784,1983.0,1982.1,0.2585849]
[1772570103719,2.97064784,1983.0,1982.1,2.38310898]
[1772570104121,2.97064784,1983.0,1982.1,0.2585849]
[1772570105321,2.97064784,1983.0,1982.1,2.38548036]
[1772570110525,2.97064784,1983.4,1983.0,2.09425509]
[1772570112228,0.00592382,1983.6,1983.1,2.33919093]
[1772570112618,2.97657166,1983.6,1983.1,0.25214]
[1772570112827,2.97657166,1983.6,1983.1,2.3362683]
[1772570113730,2.97657166,1983.6,1983.1,0.25214]
[1772570113928,2.97657166,1983.6,1983.1,2.33274667]
[1772570114724,2.97657166,1983.6,1983.1,0.25214]
[1772570115126,2.97657166,1983.6,1982.6,0.2522]
[1772570116531,2.97657166,1983.6,1982.6,2.30924642]
[1772570119034,2.97657166,1983.6,1982.9,2.32469678]
[1772570121629,2.9283737,1983.8,1983.3,2.06521529]
[1772570121827,1.37265099,1984.5,1983.6,0.25208]
[1772570122032,2.9283737,1984.3,1983.6,0.25208]
[1772570122731,2.9345072,1984.3,1983.6,0.25626916]
[1772570124430,2.9345072,1984.3,1984.0,0.25203]
[1772570125629,2.9345072,1984.3,1983.7,0.25207]
[1772570125829,2.9345072,1984.3,1983.7,2.32486701]
[1772570128231,2.9283737,1985.2,1984.1,2.32395927]
[1772570129332,2.9346056,1985.2,1984.1,0.25202]
[1772570130036,2.9346056,1985.2,1984.1,2.33713133]
[1772570133436,2.9346056,1985.2,1984.1,0.25202]
[1772570133636,2.9346056,1985.2,1984.1,2.34163298]
[1772570134637,2.9346056,1985.2,1984.1,0.25202]
[1772570135141,2.9346056,1985.2,1984.1,2.4619946]
[1772570135639,2.9346056,1985.2,1984.1,0.25202]
[1772570136242,2.9346056,1985.2,1984.1,2.45847641]
[1772570136541,2.9346056,1985.2,1984.1,0.25202]
[1772570138640,2.9346056,1985.2,1984.1,2.48322167]
[1772570139345,2.9283737,1985.0,1984.1,2.48322167]
[1772570143047,2.9283737,1985.0,1984.4,2.46660921]
[1772570143650,2.9283737,1985.0,1984.0,2.21111127]
[1772570145050,2.9283737,1985.0,1983.9,0.25203]
[1772570145249,2.9283737,1985.0,1983.9,2.4659057]
[1772570145650,2.9283737,1985.0,1983.9,0.25203]
[1772570146048,2.9283737,1985.0,1983.9,2.46240423]
[1772570146253,2.9283737,1984.9,1983.9,2.46240423]
[1772570147047,2.9283737,1984.9,1983.9,0.25203]
[1772570148341,2.9283737,1984.9,1983.9,2.46909746]
[1772570150249,2.95115318,1984.7,1983.9,2.46909746]
[1772570152851,2.95115318,1985.1,1984.4,2.22311598]
[1772570153157,2.95115318,1984.9,1984.4,2.22311598]
[1772570153456,2.95115318,1984.9,1984.3,2.47510598]
[1772570156058,2.95738508,1985.2,1984.3,2.47510598]
[1772570156258,3.10285901,1985.2,1984.7,2.21329602]
[1772570156448,0.0062319,1985.2,1984.7,2.21329602]
[1772570156654,3.10030829,1985.3,1984.6,0.25194]
[1772570157662,3.10616816,1985.3,1984.6,0.25194]
[1772570157865,3.10616816,1985.3,1984.6,0.39418422]
[1772570158962,3.10616816,1985.3,1984.7,0.09691024]
[1772570159962,3.12185014,1985.5,1985.1,0.09462713]
[1772570160856,3.12185014,1985.5,1985.0,0.34626813]
[1772570161063,3.12570671,1985.5,1985.0,0.35216749]
[1772570162156,3.12570671,1985.5,1985.0,0.25779936]
[1772570162360,3.12570671,1985.5,1985.0,0.35030462]
[1772570163164,3.12851799,1985.7,1985.3,0.07485492]
[1772570163861,3.12851799,1985.7,1985.2,0.32440206]
[1772570164262,3.13377764,1985.7,1985.2,0.32440206]
[1772570164865,3.13377764,1985.7,1985.0,0.04923979]
[1772570165168,3.13377764,1985.7,1985.0,0.00589936]
[1772570166168,3.13377764,1985.7,1984.8,0.25193]
[1772570166369,3.13377764,1985.7,1984.4,0.04691606]
[1772570166665,3.13377764,1985.7,1984.5,0.25197]
[1772570167267,3.13902698,1985.5,1984.5,0.25726433]
[1772570168164,3.13902698,1985.5,1984.5,0.30016383]
[1772570168467,3.13902698,1985.5,1984.7,0.2948395]
[1772570168771,3.13902698,1985.5,1984.7,0.25194]
[1772570169170,3.13902698,1985.5,1984.5,0.00529433]
[1772570169566,3.13902698,1985.5,1984.5,0.343364]
[1772570169767,3.13902698,1985.5,1984.9,0.25191]
[1772570169969,3.13902698,1985.5,1984.9,0.33802967]
[1772570171567,3.13902698,1985.5,1984.9,0.25191]
[1772570171870,3.13902698,1985.5,1984.9,0.34910746]
[1772570172371,3.13902698,1985.5,1984.9,0.25191]
[1772570172773,3.13902698,1985.5,1984.9,0.32403093]
[1772570173870,0.00525965,1985.7,1985.0,0.06971703]
[1772570174065,3.1211234,1986.4,1985.8,0.31625738]
[1772570174267,3.1211234,1986.4,1985.9,0.06445738]
[1772570174469,2.95115318,1987.3,1986.0,3.19760508]
[1772570174662,2.95115318,1987.1,1986.0,3.19760508]
[1772570175068,2.95532306,1987.1,1986.2,3.19757508]
[1772570178472,3.07551827,1987.3,1987.0,0.25165]
[1772570178676,3.07551827,1987.8,1987.0,0.25165]
[1772570178880,3.07551827,1987.8,1987.0,3.30542793]
[1772570179472,3.0809242,1987.8,1987.0,3.30542793]
[1772570182076,3.0809242,1987.8,1986.6,3.05377793]
[1772570182680,3.0809242,1987.8,1986.7,3.30546793]
[1772570183773,0.00540593,1987.8,1987.4,9.24319793]
[1772570183976,3.07551827,1988.4,1987.8,3.05377793]
[1772570184875,3.08127989,1988.4,1987.8,3.05377793]
[1772570185479,3.08127989,1988.4,1987.7,0.25156]
[1772570185679,3.07551827,1989.1,1988.2,3.05377793]
[1772570186378,3.07551827,1989.1,1988.3,3.30525793]
[1772570186774,3.08057916,1989.1,1988.3,3.30525793]
[1772570187481,3.08057916,1989.1,1988.6,3.05377793]
[1772570187482,0.00506089,1989.1,1988.6,3.05377793]
[1772570187677,3.07551827,1990.2,1988.8,3.05377793]
[1772570188586,3.07974632,1990.2,1988.8,3.05861314]
[1772570189082,3.07974632,1990.2,1988.9,3.30518793]
[1772570189677,3.07974632,1990.2,1989.1,3.30515793]
[1772570190381,3.07974632,1990.2,1989.3,3.30513793]
[1772570190581,3.07974632,1990.2,1989.3,0.25136]
[1772570191376,3.07974632,1990.2,1988.8,0.00483521]
[1772570191579,3.07551827,1989.8,1988.4,3.05377793]
[1772570191774,3.07551827,1989.6,1988.4,3.05377793]
[1772570192385,3.07551827,1989.6,1988.2,3.30525793]
[1772570192581,3.07551827,1989.6,1988.2,3.30945794]
[1772570192777,3.07551827,1989.6,1988.2,0.25568001]
[1772570193179,3.07551827,1989.4,1988.2,0.25568001]
[1772570193482,3.07551827,1989.2,1987.8,3.05377793]
[1772570193684,3.07551827,1989.2,1987.7,0.25156]
[1772570194386,3.07551827,1989.0,1987.7,0.25156]
[1772570194577,3.07551827,1988.6,1987.3,3.05377793]
[1772570194784,3.07551827,1988.6,1987.2,0.25162]
[1772570195285,3.07551827,1988.4,1986.9,3.05377793]
[1772570195788,3.08200024,1988.4,1987.0,3.30542793]
[1772570196183,3.07551827,1988.2,1987.0,3.30542793]
[1772570204486,3.07551827,1988.0,1986.9,0.00420995]
[1772570204893,3.07551827,1987.8,1986.9,0.00420995]
[1772570205292,3.07551827,1987.8,1986.1,3.05377793]
[1772570205889,3.07551827,1987.8,1986.3,3.05377793]
[1772570206291,3.07551827,1987.8,1986.3,3.05920157]
[1772570207094,3.07551827,1987.8,1986.5,3.05377793]
[1772570207702,3.07551827,1987.8,1986.7,3.05377793]
[1772570209905,3.07551827,1987.8,1986.6,3.66722992]
[1772570210603,3.18480763,1987.6,1986.4,3.41552992]
[1772570210898,3.18480763,1987.4,1986.3,0.00542364]
[1772570212008,3.18480763,1987.2,1986.3,0.00542364]
[1772570213005,3.18480763,1987.2,1986.3,3.42095356]
[1772570213708,3.18480763,1987.2,1986.3,0.00542364]
[1772570214104,3.18480763,1987.2,1986.3,3.42095356]
[1772570214303,3.18480763,1987.2,1986.5,3.41552992]
[1772570217509,3.18480763,1987.2,1986.3,3.42095356]
[1772570219311,3.18480763,1987.0,1985.9,3.66730992]
[1772570220308,3.18924099,1987.0,1985.9,3.67304305]
[1772570220505,3.18480763,1986.8,1985.9,3.42126305]
[1772570220915,3.18924099,1987.0,1985.9,3.67305305]
[1772570221618,3.18480763,1986.8,1985.9,0.00573313]
[1772570221814,3.18480763,1986.6,1985.9,0.00573313]
[1772570222014,3.18480763,1986.6,1985.9,3.42126305]
[1772570223722,3.18480763,1986.6,1985.9,0.00573313]
[1772570224324,3.18480763,1986.4,1985.4,3.66736992]
[1772570225024,3.18480763,1986.3,1985.4,3.66736992]
[1772570225425,3.18480763,1986.6,1985.5,3.41552992]
[1772570225622,3.18480763,1986.4,1985.5,3.41552992]
[1772570231929,3.18480763,1986.4,1985.6,0.25183]
[1772570232129,6.29791715,1986.9,1986.1,3.41552992]
[1772570232130,3.18480763,1986.9,1986.1,3.41552992]
[1772570232826,3.18480763,1986.7,1985.6,3.41552992]
[1772570233130,3.18480763,1986.6,1985.6,3.41552992]
[1772570233527,3.18480763,1986.5,1985.8,3.41552992]
[1772570234235,3.18480763,1986.5,1985.5,3.41552992]
[1772570235235,3.18480763,1986.3,1985.4,0.00587233]
[1772570235731,3.18480763,1986.3,1985.4,3.42140225]
[1772570237531,3.18480763,1986.3,1985.6,3.41552992]
[1772570242737,3.18480763,1986.3,1985.4,0.00587233]
[1772570242738,3.18480763,1986.3,1985.4,3.36830881]
[1772570242933,3.23446081,1986.1,1985.4,3.36830881]
[1772570243138,3.23446081,1985.9,1985.4,0.00587233]
[1772570243337,3.23446081,1985.9,1985.4,3.36830881]
[1772570243732,3.23446081,1985.9,1985.4,0.00587233]
[1772570244038,3.23446081,1985.9,1985.3,3.36243648]
[1772570244836,3.23446081,1985.9,1985.3,3.36863783]
[1772570245440,3.23446081,1985.9,1985.3,0.00620135]
[1772570245943,3.23446081,1985.9,1985.3,3.36863783]
[1772570246239,3.23446081,1985.7,1984.6,3.36243648]
[1772570246440,3.23446081,1985.4,1984.4,3.36243648]
[1772570246644,3.23446081,1985.2,1984.4,3.36243648]
[1772570247041,3.23446081,1985.0,1984.2,3.36243648]
[1772570247346,3.23952381,1985.0,1984.2,3.36779242]
[1772570247739,3.23952381,1985.0,1984.4,3.36243648]
[1772570247944,0.005063,1985.0,1984.4,3.36243648]
[1772570248446,3.23952381,1985.0,1984.4,3.36243648]
[1772570250347,3.23952381,1985.0,1984.3,3.61442648]
[1772570251049,0.005063,1985.0,1984.3,3.61442648]
[1772570251247,3.23952381,1985.0,1984.3,3.61442648]
[1772570254841,0.005063,1985.0,1984.3,3.61442648]
[1772570255239,3.23952381,1985.0,1984.3,3.61442648]
[1772570255543,3.23952381,1985.0,1984.3,3.36243648]
[1772570258245,3.23952381,1985.0,1984.5,3.36243648]
[1772570259150,3.23952381,1985.0,1984.4,0.25198]
[1772570260852,0.005063,1985.0,1984.4,3.61441648]
[1772570268247,3.3203278,1985.0,1984.4,3.61441648]
[1772570268448,3.3203278,1985.0,1984.2,3.34540043]
[1772570269357,3.3152648,1984.8,1984.2,0.00535594]
[1772570270662,3.3152648,1984.8,1983.8,3.34004449]
[1772570271156,3.3152648,1984.8,1983.5,3.59212449]
[1772570271360,3.3152648,1984.6,1983.5,3.59212449]
[1772570271561,3.3152648,1984.4,1983.5,3.5975398]
[1772570271955,11.106,1984.3,1983.5,3.5975398]
[1772570272161,3.3152648,1984.2,1983.5,3.5975398]
[1772570272663,11.106,1984.3,1982.9,3.34004449]
[1772570272664,3.3152648,1984.0,1982.9,3.34004449]
[1772570273561,3.3152648,1984.0,1983.0,0.25214]
[1772570273762,3.3152648,1984.0,1983.0,3.59218449]
[1772570274164,3.3152648,1983.8,1983.0,3.59218449]
[1772570275459,3.3152648,1984.3,1983.2,0.25213]
[1772570275666,3.3152648,1984.1,1983.3,3.34004449]
[1772570280272,11.109,1984.3,1983.5,3.34004449]
[1772570280471,3.3152648,1984.2,1983.5,3.34004449]
[1772570281970,3.3152648,1984.4,1983.5,3.34004449]
[1772570283272,3.3152648,1984.4,1983.4,0.25211]
[1772570283574,3.3152648,1984.4,1983.4,3.59215449]
[1772570285174,3.3152648,1984.6,1983.9,3.34004449]
[1772570286376,11.107,1984.7,1984.1,3.34004449]
[1772570286573,3.3152648,1984.6,1984.1,3.34004449]
[1772570286766,3.3152648,1984.6,1983.6,3.34004449]
[1772570286970,3.3152648,1984.6,1983.8,3.34004449]
[1772570287171,3.3152648,1984.9,1984.3,3.59203449]
[1772570287372,3.3152648,1984.9,1984.3,3.59625133]
[1772570289577,3.3152648,1984.9,1984.3,0.00421684]
[1772570290777,3.3152648,1984.9,1983.9,3.59208449]
[1772570290982,3.3152648,1984.7,1983.9,3.59208449]
[1772570291280,3.3152648,1984.5,1983.9,3.59208449]
[1772570291481,3.3152648,1984.5,1983.9,0.25204]
[1772570291671,3.3152648,1984.5,1983.7,3.34004449]
[1772570291877,3.3152648,1984.5,1983.7,3.34634833]
[1772570293182,3.3152648,1984.5,1983.7,0.00630384]
[1772570293487,3.3152648,1984.3,1983.1,3.34004449]
[1772570293783,3.3152648,1984.1,1983.1,3.34004449]
[1772570293984,3.3152648,1983.9,1983.1,3.34004449]
[1772570294286,3.3152648,1983.9,1983.1,3.34486897]
[1772570295381,3.3152648,1984.3,1983.3,3.34004449]
[1772570295586,3.3152648,1984.1,1983.5,3.34004449]
[1772570295783,3.3152648,1984.3,1983.7,3.34004449]
[1772570298682,3.50598458,1984.1,1983.1,3.37643434]
[1772570302383,0.25201,1984.2,1983.1,3.37643434]
[1772570302384,3.50598458,1983.9,1983.1,0.00482448]
[1772570302585,3.50598458,1983.7,1983.1,0.00482448]
[1772570303592,3.50598458,1983.7,1983.1,3.28750191]
[1772570307083,14.61998458,1983.9,1983.1,3.28750191]
[1772570307391,6.29791715,1984.4,1983.1,3.28750191]
[1772570307392,14.62098458,1984.0,1983.3,3.29382953]
[1772570307588,3.50598458,1984.0,1983.3,3.29382953]
[1772570308189,3.50598458,1984.0,1983.2,3.51237978]
[1772570309897,4.45189078,1984.6,1983.6,3.24175798]
[1772570310092,3.50598458,1984.4,1983.6,3.24175798]
[1772570310893,3.50598458,1984.4,1983.8,3.24005152]
[1772570311093,3.50598458,1984.4,1983.9,3.49209152]
[1772570311593,3.50598458,1984.6,1983.9,3.49209152]
[1772570311792,3.50598458,1984.6,1983.9,0.25204]
[1772570311995,3.50598458,1984.6,1983.9,3.49624124]
[1772570312192,3.50598458,1984.6,1983.9,0.25204]
[1772570312392,3.50598458,1984.6,1983.9,3.49624124]
[1772570313492,3.50598458,1984.6,1983.5,3.4816625]
[1772570317190,3.50598458,1984.4,1983.2,3.39849373]
[1772570317391,3.50598458,1984.2,1983.1,0.00482448]
[1772570317593,3.50598458,1984.0,1983.1,3.40331821]
[1772570318299,3.50598458,1984.0,1983.1,0.00482448]
[1772570318498,3.50598458,1983.8,1982.5,3.65070373]
[1772570318697,3.50598458,1983.4,1982.3,3.39849373]
[1772570318892,3.50598458,1983.2,1982.1,3.39849373]
[1772570319497,3.5104279,1983.2,1982.1,3.40290473]
[1772570319696,3.5104279,1983.2,1982.2,3.65075373]
[1772570321102,14.6374279,1983.2,1982.2,3.65075373]
[1772570321292,3.50598458,1983.1,1982.2,3.65075373]
[1772570321696,3.50598458,1983.1,1982.2,0.25226]
[1772570322202,3.50598458,1983.1,1982.2,3.65075373]
[1772570323103,3.50598458,1983.0,1982.2,3.65075373]
[1772570324801,0.00444332,1983.2,1982.2,3.65075373]
[1772570325002,1e-08,1983.2,1982.7,3.39849373]
[1772570325200,3.50598458,1983.7,1982.7,3.39849373]
[1772570326105,3.51251517,1983.7,1982.7,3.39849373]
[1772570326305,3.51251517,1983.7,1982.9,3.39849373]
[1772570332011,0.00653059,1983.7,1983.1,3.38718186]
[1772570332206,3.2189443,1983.7,1983.1,3.38718186]
[1772570332910,3.2189443,1983.7,1983.2,3.63931186]
[1772570333404,3.2189443,1983.7,1982.7,0.25218]
[1772570333613,3.2189443,1983.7,1982.8,3.38718186]
[1772570335904,3.2189443,1983.7,1983.0,3.38718186]
[1772570336109,3.2189443,1983.7,1983.2,3.38718186]
[1772570337609,3.2189443,1983.7,1983.1,0.25214]
[1772570338115,3.2189443,1983.7,1983.1,3.63932186]
[1772570339118,3.2189443,1983.7,1982.7,3.38718186]
[1772570339717,3.2189443,1983.7,1982.7,3.63937186]
[1772570340419,3.2189443,1983.7,1983.1,3.38718186]
[1772570340719,0.00653059,1983.7,1983.1,3.38718186]
[1772570341123,3.2189443,1983.7,1983.2,3.63931186]
[1772570341425,3.2189443,1983.7,1982.8,3.63936186]
[1772570344424,0.00653059,1983.7,1983.3,3.38718186]
[1772570344723,3.2189443,1983.7,1983.3,3.38718186]
[1772570347327,3.2189443,1983.7,1982.8,3.63936186]
[1772570351229,3.2189443,1983.7,1982.8,0.25218]
[1772570351429,3.21241371,1983.5,1982.4,3.63941186]
[1772570351625,3.21241371,1983.3,1982.4,3.63941186]
[1772570351922,3.21241371,1983.1,1982.2,3.38718186]
[1772570352125,3.21241371,1983.1,1982.1,3.39159286]
[1772570352529,3.21241371,1982.9,1982.1,3.39159286]
[1772570353228,3.21241371,1982.9,1982.1,0.004411]
[1772570353529,0.25215,1983.1,1982.0,0.25228]
[1772570353530,3.21241371,1982.7,1982.0,3.63946186]
[1772570354329,3.21241371,1982.7,1982.0,3.64326816]
[1772570356429,3.21241371,1982.7,1982.0,0.2560863]
[1772570356625,3.70628978,1982.6,1981.4,3.38718186]
[1772570356824,3.21241371,1982.4,1981.4,3.38718186]
[1772570357026,3.21241371,1982.4,1981.2,3.38718186]
[1772570357633,3.21241371,1982.4,1981.2,3.39201898]
[1772570358335,3.21241371,1982.4,1981.6,3.16086819]
[1772570360843,3.21241371,1982.4,1981.3,3.16086819]
[1772570361042,6.20982958,1982.4,1981.2,0.00483712]
[1772570361342,3.23152668,1982.0,1981.2,0.00483712]
[1772570361532,3.23152668,1981.8,1981.2,3.16570531]
[1772570361838,0.00460463,1982.0,1981.2,3.16570531]
[1772570361839,3.23613131,1982.0,1981.2,3.16570531]
[1772570362935,3.23152668,1982.4,1981.4,3.16086819]
[1772570364038,3.23669535,1982.4,1981.6,3.16086819]
[1772570364246,3.23152668,1982.8,1982.0,3.16086819]
[1772570365238,3.23612829,1982.8,1982.0,3.16086819]
[1772570368642,3.23152668,1983.0,1982.4,3.16086819]
[1772570368942,3.23152668,1983.0,1982.2,3.16086819]
[1772570369544,3.23672857,1983.0,1982.2,3.16086819]
[1772570372641,3.23152668,1983.8,1982.9,3.16086819]